bitfinex/quotes_SOLUSD_20250611
["timestamp","ask_amount","ask_price","bid_price","bid_amount"]
[1749601358283,19.52763959,164.37,164.31,1.5791]
[1749601358284,19.52763959,164.37,164.33,19.52763959]
[1749601358657,6.98,164.39,164.33,19.52763959]
[1749601358986,19.52763959,164.37,164.33,19.52763959]
[1749601359883,19.52763959,164.37,164.31,1.5791]
[1749601360361,18.64964886,164.38,164.31,1.5791]
[1749601360562,26.50763959,164.39,164.34,19.52763959]
[1749601361781,6.98,164.39,164.35,19.52763959]
[1749601361986,6.98,164.39,164.31,1.5791]
[1749601362157,6.98,164.39,164.35,19.52763959]
[1749601362764,6.98,164.39,164.35,19.02763959]
[1749601363167,6.98,164.39,164.37,19.52763959]
[1749601364265,6.98,164.39,164.31,1.5791]
[1749601364473,6.98,164.39,164.31,88.8791]
[1749601364691,6.98,164.39,164.37,19.52763959]
[1749601365593,6.98,164.39,164.31,88.8791]
[1749601365790,6.98,164.39,164.35,19.52763959]
[1749601366085,6.98,164.39,164.31,88.8791]
[1749601366086,19.52763959,164.36,164.31,19.52763959]
[1749601366303,18.64964886,164.38,164.29,8.33333333]
[1749601366593,18.64964886,164.38,164.29,27.86097292]
[1749601366594,19.52763959,164.34,164.29,27.86097292]
[1749601366989,19.52763959,164.35,164.3,19.52763959]
[1749601367496,19.52763959,164.34,164.3,19.52763959]
[1749601367699,19.52763959,164.34,164.29,27.86097292]
[1749601367865,0.14216157,164.37,164.29,8.33333333]
[1749601368198,19.52763959,164.33,164.29,27.86097292]
[1749601368367,0.14216157,164.37,164.29,27.86097292]
[1749601368783,19.52763959,164.33,164.29,8.33333333]
[1749601368978,0.14216157,164.37,164.29,8.33333333]
[1749601368979,19.52763959,164.34,164.29,27.86097292]
[1749601369305,19.52763959,164.35,164.31,19.52763959]
[1749601369871,18.64964886,164.35,164.29,8.33333333]
[1749601370067,19.52763959,164.36,164.29,8.33333333]
[1749601370068,19.52763959,164.36,164.31,19.52763959]
[1749601370267,26.0,164.38,164.33,19.52763959]
[1749601370485,6.98,164.39,164.36,19.52763959]
[1749601370681,6.98,164.39,164.38,19.52763959]
[1749601371591,6.98,164.39,164.33,26.0]
[1749601371794,6.98,164.39,164.38,19.52763959]
[1749601372670,6.98,164.39,164.33,26.0]
[1749601372873,6.98,164.39,164.38,19.52763959]
[1749601373366,6.98,164.39,164.29,123.1954949]
[1749601373367,25.62964886,164.39,164.29,8.33333333]
[1749601373569,18.64964886,164.38,164.34,19.52763959]
[1749601374163,18.64964886,164.38,164.35,19.52763959]
[1749601374905,6.98,164.39,164.3,19.52763959]
[1749601375595,6.98,164.39,164.37,19.52763959]
[1749601375773,6.98,164.39,164.38,19.52763959]
[1749601377378,6.98,164.39,164.38,29.63628683]
[1749601379608,6.98,164.39,164.36,7.5661]
[1749601379778,6.98,164.39,164.36,1.5525]
[1749601380100,6.98,164.39,164.38,29.63628683]
[1749601380905,6.98,164.39,164.33,26.0]
[1749601381071,6.98,164.39,164.38,29.63628683]
[1749601382382,6.98,164.39,164.35,26.0]
[1749601382812,6.98,164.39,164.38,29.63628683]
[1749601382992,6.98,164.39,164.35,26.0]
[1749601383212,6.98,164.39,164.38,29.63628683]
[1749601385785,6.98,164.39,164.33,27.38]
[1749601386212,6.98,164.39,164.38,29.63628683]
[1749601386821,6.98,164.39,164.38,31.23198683]
[1749601388509,6.98,164.39,164.38,1.5957]
[1749601388808,6.98,164.39,164.38,31.23198683]
[1749601390492,6.98,164.39,164.38,93.12267366]
[1749601390687,6.88,164.44,164.38,120.66267366]
[1749601390887,6.88,164.44,164.43,29.63628683]
[1749601394134,6.88,164.44,164.42,27.5]
[1749601394297,6.88,164.44,164.43,29.63628683]
[1749601397219,6.88,164.44,164.41,53.46]
[1749601397411,6.88,164.44,164.42,19.49810155]
[1749601397612,6.88,164.44,164.38,61.3701]
[1749601397901,6.88,164.44,164.42,19.49810155]
[1749601398727,6.88,164.44,164.38,33.8501]
[1749601398926,6.88,164.44,164.42,19.49810155]
[1749601399422,6.88,164.44,164.43,19.49810155]
[1749601400111,6.88,164.44,164.38,35.3501]
[1749601400409,6.88,164.44,164.43,19.49810155]
[1749601400813,6.88,164.44,164.38,1.5957]
[1749601401023,6.88,164.44,164.43,19.49810155]
[1749601401840,6.88,164.44,164.4,27.54]
[1749601402000,6.88,164.44,164.43,19.49810155]
[1749601402205,6.88,164.44,164.4,27.54]
[1749601402400,6.88,164.44,164.43,19.49810155]
[1749601404116,6.88,164.44,164.4,27.54]
[1749601404326,6.88,164.44,164.43,19.49810155]
[1749601408744,6.98,164.48,164.43,46.99810155]
[1749601408952,6.98,164.48,164.47,19.49810155]
[1749601411209,6.98,164.48,164.43,87.3]
[1749601411428,6.98,164.48,164.47,19.49810155]
[1749601415358,6.98,164.48,164.44,27.38]
[1749601415639,6.98,164.48,164.47,19.49810155]
[1749601416841,6.98,164.48,164.44,27.38]
[1749601417140,6.98,164.48,164.47,19.49810155]
[1749601418223,6.98,164.48,164.44,27.38]
[1749601418545,6.98,164.48,164.47,19.49810155]
[1749601419444,6.98,164.48,162.8,29.14]
[1749601419445,26.47810155,164.48,164.38,28.8957]
[1749601419618,6.98,164.48,164.45,19.49810155]
[1749601419922,6.98,164.48,164.47,19.49810155]
[1749601420538,6.98,164.48,164.41,27.3]
[1749601420838,6.98,164.48,164.47,19.49810155]
[1749601422924,6.98,164.48,164.44,26.0]
[1749601423126,6.98,164.48,164.47,19.49810155]
[1749601423441,6.98,164.48,164.46,19.49810155]
[1749601424341,6.98,164.48,164.47,19.49810155]
[1749601424527,6.98,164.48,164.46,19.49810155]
[1749601425350,6.98,164.48,164.44,26.0]
[1749601425545,6.98,164.48,164.47,19.49810155]
[1749601428125,6.98,164.48,164.44,26.0]
[1749601428337,6.98,164.48,164.47,19.49810155]
[1749601429352,6.98,164.48,164.44,26.0]
[1749601429556,6.98,164.48,164.45,19.49810155]
[1749601429928,6.98,164.48,164.46,19.49810155]
[1749601431141,6.98,164.48,164.44,26.0]
[1749601431340,6.98,164.48,164.41,27.24]
[1749601431341,18.68326204,164.48,164.41,26.0]
[1749601431540,6.98,164.48,164.46,11.70326204]
[1749601431744,6.98,164.48,164.47,11.70326204]
[1749601434228,6.98,164.48,164.46,26.0]
[1749601434544,6.98,164.48,164.45,27.5982]
[1749601434545,6.98,164.48,164.47,11.70326204]
[1749601436028,6.98,164.48,164.47,23.54868565]
[1749601436435,6.98,164.48,164.47,42.19833451]
[1749601436640,6.78,164.55,164.52,26.0]
[1749601436945,6.78,164.55,164.52,54.8249]
[1749601437957,6.78,164.55,164.54,11.70326204]
[1749601438532,18.64964886,164.62,164.54,11.70326204]
[1749601438533,6.78,164.61,164.57,26.0]
[1749601438737,6.78,164.61,164.6,11.70326204]
[1749601439455,6.78,164.61,164.6,38.91095092]
[1749601440045,6.78,164.61,164.6,39.05311249]
[1749601440232,8.086,164.72,164.6,39.05311249]
[1749601440233,6.78,164.68,164.63,26.0]
[1749601440426,6.78,164.68,164.67,19.45547546]
[1749601441831,6.78,164.68,164.67,26.0]
[1749601442030,6.78,164.68,164.67,19.45547546]
[1749601442235,26.23547546,164.68,164.56,6.0291]
[1749601442539,26.23547546,164.68,164.6,19.45547546]
[1749601442540,18.64964886,164.67,164.6,19.45547546]
[1749601442738,18.64964886,164.67,164.61,19.45547546]
[1749601443051,19.45547546,164.66,164.61,19.45547546]
[1749601443247,18.64964886,164.67,164.62,19.45547546]
[1749601443455,38.10512432,164.67,164.62,19.45547546]
[1749601443641,14.4663,164.68,164.58,26.0]
[1749601443642,12.9164,164.68,164.64,19.45547546]
[1749601443963,12.9164,164.68,164.56,6.0291]
[1749601443964,6.78,164.68,164.63,26.0]
[1749601444261,18.64964886,164.67,164.61,19.45547546]
[1749601444463,19.45547546,164.65,164.59,26.0]
[1749601444635,19.45547546,164.64,164.59,45.45547546]
[1749601444835,19.45547546,164.64,164.59,19.45547546]
[1749601445261,19.45547546,164.64,164.55,28.5921]
[1749601445442,19.45547546,164.64,164.6,19.45547546]
[1749601445768,18.64964886,164.67,164.58,26.0]
[1749601445961,18.64964886,164.67,164.55,28.5921]
[1749601445962,19.45547546,164.62,164.55,1.5121]
[1749601446179,18.64964886,164.64,164.52,6.1753]
[1749601446180,19.45547546,164.6,164.52,6.1753]
[1749601446356,24.89334886,164.64,164.54,19.45547546]
[1749601446357,19.45547546,164.59,164.54,19.45547546]
[1749601446551,19.45547546,164.59,164.55,19.45547546]
[1749601446753,19.45547546,164.6,164.55,19.45547546]
[1749601446951,19.45547546,164.59,164.55,19.45547546]
[1749601447145,19.45547546,164.59,164.54,19.45547546]
[1749601447355,19.45547546,164.59,164.55,19.45547546]
[1749601447971,19.45547546,164.59,164.51,1.6351]
[1749601448142,19.45547546,164.58,164.54,19.45547546]
[1749601448469,6.78,164.57,164.54,19.45547546]
[1749601448657,6.78,164.57,164.51,26.0]
[1749601448965,6.78,164.57,164.54,19.45547546]
[1749601449464,6.78,164.57,164.53,19.45547546]
[1749601449963,6.78,164.57,164.52,26.0]
[1749601449964,26.23547546,164.57,164.52,19.45547546]
[1749601450173,26.23547546,164.57,164.48,1.6414]
[1749601450174,19.45547546,164.55,164.48,1.6414]
[1749601450484,19.45547546,164.55,164.5,19.45547546]
[1749601450642,19.45547546,164.55,164.46,27.04]
[1749601450643,19.45547546,164.54,164.45,27.02]
[1749601450842,6.0099,164.56,164.48,26.0]
[1749601451043,19.45547546,164.53,164.48,26.0]
[1749601451256,19.45547546,164.52,164.48,45.45547546]
[1749601451661,19.45547546,164.52,164.48,19.45547546]
[1749601452470,26.31724886,164.56,164.43,28.6396]
[1749601452471,38.10512432,164.5,164.45,19.45547546]
[1749601452673,38.10512432,164.5,164.4,25.48467546]
[1749601452674,19.45547546,164.48,164.41,27.06]
[1749601452976,19.45547546,164.48,164.43,19.45547546]
[1749601453673,18.64964886,164.47,164.39,1.5326]
[1749601453976,26.23547546,164.46,164.39,1.5326]
[1749601454179,26.23547546,164.46,164.36,6.67376157]
[1749601454180,19.45547546,164.45,164.4,19.45547546]
[1749601454583,19.45547546,164.44,164.39,26.0]
[1749601454754,19.45547546,164.44,164.36,6.5316]
[1749601455079,38.10512432,164.45,164.4,19.45547546]
[1749601455375,18.64964886,164.45,164.39,19.45547546]
[1749601455591,19.45547546,164.44,164.36,32.5316]
[1749601455749,19.45547546,164.44,164.39,19.45547546]
[1749601455952,19.45547546,164.44,164.36,31.5316]
[1749601456288,38.10512432,164.45,164.4,19.45547546]
[1749601456893,19.45547546,164.44,164.4,19.45547546]
[1749601457054,19.45547546,164.44,164.39,19.45547546]
[1749601457261,18.64964886,164.45,164.4,19.45547546]
[1749601457460,38.10512432,164.45,164.4,19.45547546]
[1749601457854,6.78,164.46,164.43,19.45547546]
[1749601458053,6.78,164.46,164.45,19.45547546]
[1749601458356,6.78,164.46,164.44,19.45547546]
[1749601458759,6.78,164.46,164.43,19.45547546]
[1749601459155,6.78,164.46,164.44,19.45547546]
[1749601460470,6.78,164.46,164.42,19.45547546]
[1749601460669,19.45547546,164.45,164.37,26.0]
[1749601460972,38.10512432,164.45,164.4,19.45547546]
[1749601461159,38.10512432,164.45,164.41,19.45547546]
[1749601461356,38.10512432,164.45,164.4,19.45547546]
[1749601461669,26.23547546,164.46,164.41,19.45547546]
[1749601461871,6.78,164.46,164.41,19.45547546]
[1749601462176,26.23547546,164.46,164.41,19.45547546]
[1749601462555,6.78,164.46,164.37,26.0]
[1749601462756,19.45547546,164.45,164.4,19.45547546]
[1749601465556,19.45547546,164.45,164.4,106.75547546]
[1749601466591,19.45547546,164.45,164.4,87.3]
[1749601466794,19.45547546,164.45,164.4,106.75547546]
[1749601467758,19.45547546,164.44,164.39,19.45547546]
[1749601467973,19.45547546,164.42,164.38,19.45547546]
[1749601468602,24.99044886,164.45,164.38,19.45547546]
[1749601468781,24.99044886,164.45,164.37,26.0]
[1749601468782,19.45547546,164.43,164.37,26.0]
[1749601468979,19.45547546,164.44,164.39,19.45547546]
[1749601469210,6.78,164.46,164.42,19.45547546]
[1749601469376,26.23547546,164.46,164.37,26.0]
[1749601469577,26.23547546,164.46,164.41,19.45547546]
[1749601469811,26.23547546,164.46,164.37,26.0]
[1749601469812,19.45547546,164.45,164.4,19.45547546]
[1749601470006,26.0,164.42,164.4,19.45547546]
[1749601470385,26.0,164.43,164.41,19.45547546]
[1749601470578,26.23547546,164.46,164.36,0.14216157]
[1749601470783,19.45547546,164.45,164.4,19.45547546]
[1749601470978,32.78,164.46,164.4,19.45547546]
[1749601471185,52.23547546,164.46,164.41,19.45547546]
[1749601471905,52.23547546,164.46,164.35,28.88396157]
[1749601471906,6.78,164.46,164.44,19.45547546]
[1749601472102,26.0,164.44,164.43,19.45547546]
[1749601472286,26.0,164.44,164.42,19.45547546]
[1749601472600,6.78,164.46,164.43,19.45547546]
[1749601472900,26.0,164.44,164.43,19.45547546]
[1749601473301,26.0,164.44,164.42,19.45547546]
[1749601473493,26.0,164.44,164.43,19.45547546]
[1749601473699,26.0,164.45,164.43,19.45547546]
[1749601474080,26.0,164.44,164.36,106.09181043]
[1749601474404,26.0,164.44,164.42,19.45547546]
[1749601474594,26.0,164.44,164.36,87.44216157]
[1749601474794,26.0,164.45,164.43,19.45547546]
[1749601475595,26.0,164.45,164.36,87.44216157]
[1749601475794,26.0,164.44,164.42,19.45547546]
[1749601477202,26.0,164.45,164.42,19.45547546]
[1749601477911,6.78,164.46,164.36,114.3]
[1749601477912,26.0,164.43,164.36,114.3]
[1749601478105,26.0,164.43,164.42,19.45547546]
[1749601478407,26.0,164.43,164.41,19.45547546]
[1749601478707,26.0,164.43,164.4,19.45547546]
[1749601478912,6.78,164.46,164.41,19.45547546]
[1749601479094,6.1353,164.55,164.45,19.45547546]
[1749601479296,38.10512432,164.53,164.48,19.45547546]
[1749601479701,19.45547546,164.5,164.45,19.45547546]
[1749601480292,19.45547546,164.49,164.44,19.45547546]
[1749601480893,18.64964886,164.49,164.45,19.45547546]
[1749601482298,26.0,164.51,164.45,19.45547546]
[1749601482496,45.45547546,164.51,164.46,19.45547546]
[1749601482813,38.10512432,164.52,164.47,19.45547546]
[1749601483040,26.0,164.49,164.48,19.45547546]
[1749601484620,32.72,164.49,164.47,19.45547546]
[1749601485287,32.72,164.49,164.42,1.5483]
[1749601485488,19.45547546,164.48,164.42,1.5483]
[1749601485789,19.45547546,164.47,164.42,19.45547546]
[1749601486211,32.72,164.49,164.42,19.45547546]
[1749601486395,19.45547546,164.47,164.42,19.45547546]
[1749601486990,32.72,164.49,164.42,19.45547546]
[1749601486991,19.45547546,164.48,164.42,19.45547546]
[1749601488100,51.36964886,164.49,164.42,19.45547546]
[1749601488326,38.10512432,164.48,164.42,19.45547546]
[1749601488511,18.64964886,164.48,164.42,19.45547546]
[1749601488713,38.10512432,164.48,164.42,19.45547546]
[1749601489220,19.45547546,164.47,164.42,19.45547546]
[1749601489700,18.64964886,164.48,164.38,1.6065]
[1749601489701,19.45547546,164.46,164.38,1.6065]
[1749601489908,19.45547546,164.46,164.41,19.45547546]
[1749601490226,18.64964886,164.48,164.41,19.45547546]
[1749601490526,19.45547546,164.46,164.41,19.45547546]
[1749601491123,19.45547546,164.43,164.38,88.9065]
[1749601491417,24.80864886,164.48,164.42,19.45547546]
[1749601491599,44.26412432,164.48,164.43,19.45547546]
[1749601492101,44.26412432,164.48,164.4,87.3]
[1749601492307,44.26412432,164.48,164.43,19.45547546]
[1749601492530,19.45547546,164.47,164.43,19.45547546]
[1749601493510,19.45547546,164.47,164.42,19.45547546]
[1749601493717,24.80864886,164.48,164.42,19.45547546]
[1749601493896,44.26412432,164.48,164.43,19.45547546]
[1749601494292,19.45547546,164.47,164.42,19.45547546]
[1749601494509,44.26412432,164.48,164.43,19.45547546]
[1749601495619,38.10512432,164.48,164.43,19.45547546]
[1749601495799,38.10512432,164.48,164.39,0.14216157]
[1749601495999,18.64964886,164.48,164.43,19.45547546]
[1749601497006,53.74467546,164.49,164.43,19.45547546]
[1749601497209,6.72,164.48,164.47,19.45547546]
[1749601497406,6.72,164.48,164.45,19.45547546]
[1749601498824,6.72,164.48,164.44,19.45547546]
[1749601499525,26.17547546,164.48,164.43,106.75547546]
[1749601499822,26.17547546,164.48,164.43,19.45547546]
[1749601500413,6.72,164.48,164.43,19.45547546]
[1749601500609,26.17547546,164.48,164.43,19.45547546]
[1749601501612,26.17547546,164.48,164.4,113.3]
[1749601501810,26.17547546,164.48,164.43,19.45547546]
[1749601502414,26.17547546,164.48,164.4,113.3]
[1749601502735,19.45547546,164.46,164.41,19.45547546]
[1749601503400,19.45547546,164.44,164.39,19.45547546]
[1749601503921,19.45547546,164.44,164.38,1.6065]
[1749601504140,18.64964886,164.46,164.38,19.45547546]
[1749601504431,19.45547546,164.43,164.38,19.45547546]
[1749601504629,19.45547546,164.44,164.36,26.0]
[1749601504924,19.45547546,164.45,164.36,26.0]
[1749601505101,19.45547546,164.44,164.36,26.0]
[1749601505302,19.45547546,164.43,164.38,19.45547546]
[1749601505505,19.45547546,164.44,164.39,19.45547546]
[1749601506317,19.45547546,164.44,164.36,26.0]
[1749601506525,19.45547546,164.43,164.39,19.45547546]
[1749601507424,6.58,164.42,164.41,19.45547546]
[1749601509738,6.58,164.42,164.4,1.6195]
[1749601509739,6.58,164.42,164.4,19.45547546]
[1749601510235,6.58,164.42,164.41,19.45547546]
[1749601510742,6.58,164.42,164.41,45.59763703]
[1749601510917,6.58,164.42,164.41,47.18593703]
[1749601511243,6.58,164.42,164.41,74.00593703]
[1749601512138,6.58,164.47,164.44,26.0]
[1749601512347,6.0752,164.56,164.47,0.14216157]
[1749601512515,6.58,164.55,164.52,19.45547546]
[1749601512938,6.58,164.55,164.54,19.45547546]
[1749601513941,6.58,164.55,164.52,19.45547546]
[1749601514240,19.45547546,164.53,164.44,1.5492]
[1749601514460,19.45547546,164.5,164.44,1.5492]
[1749601514620,6.17,164.53,164.44,19.45547546]
[1749601514621,19.45547546,164.49,164.44,19.45547546]
[1749601514819,19.45547546,164.5,164.45,19.45547546]
[1749601515015,19.45547546,164.52,164.46,19.45547546]
[1749601515331,19.45547546,164.52,164.47,19.45547546]
[1749601516847,19.45547546,164.51,164.46,19.45547546]
[1749601517046,19.45547546,164.51,164.44,26.0]
[1749601517342,19.45547546,164.51,164.46,19.45547546]
[1749601518730,6.17,164.53,164.46,19.45547546]
[1749601518930,19.45547546,164.51,164.44,87.3]
[1749601519239,19.45547546,164.51,164.46,19.45547546]
[1749601519624,19.45547546,164.5,164.44,87.3]
[1749601519821,19.45547546,164.5,164.45,19.45547546]
[1749601520039,19.45547546,164.5,164.44,87.3]
[1749601520346,19.45547546,164.51,164.46,19.45547546]
[1749601521224,38.10512432,164.52,164.47,19.45547546]
[1749601521535,25.62547546,164.53,164.47,19.45547546]
[1749601521736,19.45547546,164.52,164.47,19.45547546]
[1749601522523,25.62547546,164.53,164.48,19.45547546]
[1749601522819,6.58,164.52,164.48,19.45547546]
[1749601523127,6.58,164.52,164.44,0.14216157]
[1749601523328,6.58,164.52,164.49,19.45547546]
[1749601523535,38.10512432,164.54,164.49,19.45547546]
[1749601523735,6.58,164.53,164.49,19.45547546]
[1749601524173,26.03547546,164.53,164.48,19.45547546]
[1749601524352,6.58,164.53,164.49,19.45547546]
[1749601524646,26.0,164.56,164.5,19.45547546]
[1749601524647,6.58,164.52,164.5,19.45547546]
[1749601524858,6.58,164.52,164.44,93.52324388]
[1749601524859,6.58,164.52,164.51,19.45547546]
[1749601526751,20.96,164.58,164.51,19.59763703]
[1749601526960,6.58,164.57,164.52,0.14216157]
[1749601527123,6.58,164.57,164.55,0.14216157]
[1749601527843,6.58,164.57,164.55,6.21930557]
[1749601528232,6.58,164.57,164.56,19.59763703]
[1749601530526,6.54,164.64,164.57,18.79181043]
[1749601530755,6.54,164.64,164.63,19.45547546]
[1749601530958,6.54,164.64,164.63,19.59763703]
[1749601534033,6.54,164.64,164.63,0.14216157]
[1749601534461,6.54,164.64,164.63,19.59763703]
[1749601534627,6.54,164.64,164.63,19.45547546]
[1749601535131,26.0,164.62,164.6,19.45547546]
[1749601535329,26.0,164.62,164.55,87.3]
[1749601535330,26.0,164.62,164.61,19.45547546]
[1749601535526,6.54,164.64,164.57,26.78]
[1749601535737,6.54,164.64,164.63,19.45547546]
[1749601536459,6.54,164.64,164.62,19.45547546]
[1749601536846,26.0,164.61,164.58,0.14216157]
[1749601537039,26.0,164.61,164.6,19.45547546]
[1749601537749,26.0,164.61,164.57,114.08]
[1749601537750,26.0,164.61,164.57,87.3]
[1749601537947,26.0,164.61,164.59,19.45547546]
[1749601538147,26.0,164.61,164.6,19.45547546]
[1749601539246,26.0,164.61,164.5,58.68395155]
[1749601539247,26.0,164.59,164.47,6.2112]
[1749601539564,26.0,164.51,164.46,1.5713]
[1749601539764,26.0,164.51,164.5,19.45547546]
[1749601539765,6.54,164.51,164.5,19.45547546]
[1749601540064,6.54,164.51,164.47,27.02]
[1749601540259,6.54,164.51,164.5,19.45547546]
[1749601540458,18.64964886,164.59,164.5,19.45547546]
[1749601540459,26.0,164.59,164.5,38.91095092]
[1749601540640,6.54,164.55,164.51,0.14216157]
[1749601540846,6.54,164.56,164.51,0.14216157]
[1749601541060,32.54,164.56,164.48,7.17624293]
[1749601541261,32.54,164.56,164.46,27.3704298]
[1749601541262,26.0,164.52,164.46,1.5713]
[1749601541468,26.0,164.52,164.43,33.3312]
[1749601541653,26.0,164.52,164.43,6.2112]
[1749601541847,26.0,164.52,164.49,19.45547546]
[1749601542764,26.0,164.52,164.46,0.14216157]
[1749601542979,26.0,164.52,164.45,4.93333735]
[1749601543141,26.0,164.52,164.49,19.45547546]
[1749601543541,26.0,164.52,164.5,19.45547546]
[1749601543741,26.0,164.53,164.51,19.45547546]
[1749601544042,26.0,164.53,164.52,19.45547546]
[1749601544468,26.0,164.53,164.46,0.14216157]
[1749601544640,26.0,164.53,164.52,19.45547546]
[1749601544848,6.54,164.56,164.46,6.22254632]
[1749601545357,6.54,164.56,164.54,19.45547546]
[1749601546165,6.54,164.56,164.46,6.22254632]
[1749601546361,6.54,164.56,164.53,19.45547546]
[1749601546563,6.54,164.56,164.46,0.14216157]
[1749601546768,6.54,164.56,164.53,19.45547546]
[1749601547166,6.54,164.56,164.47,18.64964886]
[1749601547358,6.54,164.56,164.54,19.45547546]
[1749601547878,6.54,164.56,164.47,105.94964886]
[1749601548053,6.54,164.56,164.54,19.45547546]
[1749601548774,6.54,164.56,164.55,19.45547546]
[1749601548972,25.63507546,164.62,164.55,19.45547546]
[1749601549272,26.0,164.57,164.52,0.14216157]
[1749601549449,26.0,164.57,164.56,19.45547546]
[1749601551468,26.0,164.57,164.52,87.44216157]
[1749601551775,26.0,164.57,164.55,19.45547546]
[1749601552068,26.0,164.57,164.52,87.3]
[1749601552269,26.0,164.57,164.53,19.45547546]
[1749601552478,19.45547546,164.56,164.52,87.3]
[1749601552656,26.0,164.53,164.52,87.3]
[1749601552856,45.45547546,164.55,164.5,19.45547546]
[1749601553276,19.45547546,164.54,164.45,87.3]
[1749601553453,45.45547546,164.52,164.47,19.45547546]
[1749601553776,26.0,164.5,164.46,19.45547546]
[1749601553977,25.99547546,164.49,164.43,1.6564]
[1749601554193,25.99547546,164.49,164.45,19.45547546]
[1749601554671,6.54,164.49,164.45,19.45547546]
[1749601555574,6.54,164.49,164.48,19.45547546]
[1749601559474,6.54,164.49,164.42,18.79181043]
[1749601559662,6.64,164.49,164.48,19.45547546]
[1749601560462,6.64,164.49,164.45,0.14216157]
[1749601560765,6.64,164.49,164.48,19.45547546]
[1749601561479,26.0,164.53,164.48,19.45547546]
[1749601561705,6.64,164.49,164.48,19.45547546]
[1749601566087,6.64,164.49,164.45,113.44216157]
[1749601566466,25.67887546,164.54,164.48,19.45547546]
[1749601566666,6.64,164.53,164.49,19.45547546]
[1749601569086,6.64,164.53,164.45,113.44216157]
[1749601569288,19.45547546,164.6,164.5,19.45547546]
[1749601569289,32.6198,164.58,164.5,19.45547546]
[1749601569472,6.64,164.52,164.51,19.45547546]
[1749601570467,6.64,164.52,164.47,93.50706157]
[1749601570690,6.64,164.52,164.48,19.45547546]
[1749601570900,26.09547546,164.52,164.47,87.3]
[1749601571201,6.64,164.52,164.49,19.45547546]
[1749601571494,6.64,164.52,164.47,87.3]
[1749601572064,6.64,164.52,164.49,19.45547546]
[1749601572592,6.64,164.52,164.45,26.0]
[1749601572593,19.45547546,164.51,164.46,19.45547546]
[1749601572795,24.95044886,164.51,164.45,26.0]
[1749601573001,19.45547546,164.48,164.43,19.45547546]
[1749601573206,18.64964886,164.5,164.43,19.45547546]
[1749601573502,19.45547546,164.48,164.43,19.45547546]
[1749601574999,19.45547546,164.48,164.42,27.5975]
[1749601575300,19.45547546,164.48,164.43,19.45547546]
[1749601577401,19.45547546,164.47,164.41,26.0]
[1749601577601,19.45547546,164.46,164.41,26.0]
[1749601577804,19.45547546,164.46,164.42,19.45547546]
[1749601578803,19.45547546,164.46,164.41,26.0]
[1749601579003,19.45547546,164.46,164.42,19.45547546]
[1749601579228,18.64964886,164.49,164.42,19.45547546]
[1749601579229,18.64964886,164.49,164.42,11.7035715]
[1749601579389,11.7035715,164.46,164.42,11.7035715]
[1749601579593,18.64964886,164.47,164.41,26.0]
[1749601579828,11.7035715,164.48,164.43,11.7035715]
[1749601580119,18.64964886,164.5,164.44,11.7035715]
[1749601580120,6.64,164.46,164.44,11.7035715]
[1749601580313,6.64,164.46,164.43,11.7035715]
[1749601581501,6.64,164.46,164.41,26.0]
[1749601581716,6.64,164.46,164.45,11.7035715]
[1749601581922,6.64,164.46,164.42,0.14216157]
[1749601582233,6.64,164.46,164.44,11.7035715]
[1749601582710,6.66,164.45,164.44,11.7035715]
[1749601583534,6.66,164.45,164.41,113.3]
[1749601583732,6.66,164.45,164.44,11.7035715]
[1749601584106,6.66,164.45,164.41,113.3]
[1749601584526,6.66,164.45,164.44,11.7035715]
[1749601584722,18.3635715,164.45,164.41,113.3]
[1749601584926,6.66,164.45,164.41,125.0035715]
[1749601585111,6.66,164.45,164.43,11.7035715]
[1749601585506,6.66,164.45,164.44,11.7035715]
[1749601585722,6.66,164.45,164.42,0.14216157]
[1749601585926,6.66,164.45,164.44,11.7035715]